Cogmind - Beta 10.2 @@@ ROGUE MODE // 2021.07.26 @ 14:06:37 Player: Demise Result: Destroyed by 8R-AWN with 8R-AWN's Boregun Performance ------------- Evolutions (0) 0 Regions Visited (3) 600 Robots Destroyed (47) 235 Value Destroyed (796) 796 Prototype IDs (2) 40 Alien Tech Used (0) 0 Bonus (-1037) -1037 TOTAL SCORE: 634 Bonus ------- Friendly Fire -1037 Cogmind --------- Core Integrity 0/250 Matter 205/300 Energy 257/275 System Corruption 1% Temperature Cool (55) Movement Treading (180) Ox1 Location -10/Exiles Parts ------- > --- POWER (1) -------- Deuterium Engine > --- PROPULSION (2) --- Improved Treads Improved Treads > --- UTILITY (2) ------ High-capacity Storage Unit High-capacity Storage Unit > --- WEAPON (2) ------- Heavy EM Pulse Gun Heavy EM Pulse Gun > --- INVENTORY (20) --- Light Nuclear Core Improved Treads Improved Treads High-capacity Matter Pod (200) Improved Trap Extractor Heavy EM Pulse Gun Heavy EM Pulse Gun Heavy EM Pulse Gun Heavy EM Pulse Gun Heavy EM Pulse Gun Heavy EM Pulse Gun EM Pulse Cannon Heavy Particle Cannon Assault Rifle Assault Rifle Assault Rifle Grenade Launcher Datajack Makeshift Hammer Peak State ------------ > --- POWER ------------ Deuterium Engine > --- PROPULSION ------- Improved Treads Improved Treads > --- UTILITY ---------- High-capacity Storage Unit High-capacity Storage Unit > --- WEAPON ----------- Heavy EM Pulse Gun EM Pulse Cannon > --- INVENTORY -------- Light Nuclear Core Improved Treads Improved Treads High-capacity Matter Pod Heavy EM Pulse Gun Heavy EM Pulse Gun Heavy EM Pulse Gun Heavy EM Pulse Gun Heavy EM Pulse Gun Heavy EM Pulse Gun Heavy EM Pulse Gun Heavy EM Pulse Gun Heavy EM Pulse Gun Heavy EM Pulse Gun Assault Rifle Assault Rifle Assault Rifle Grenade Launcher Datajack Mining Laser [Rating: 17] Favorites ----------- Power Ion Engine Engine Ion Engine Propulsion Improved Treads Treads Improved Treads Leg Aluminum Leg Wheel Wheel Utility High-capacity Storage Unit Storage High-capacity Storage Unit Processor Signal Interpreter Weapon Heavy EM Pulse Gun Energy Gun Heavy EM Pulse Gun Energy Cannon EM Pulse Cannon Ballistic Gun Assault Rifle Launcher Grenade Launcher Special Weapon Mining Laser Special Melee Weapon Datajack Build | -11 -10 -10 -10 ------- Run | Scr Mat Min Exi Slots Evolved . | . . . . Power . | . . . . Propulsion . | . . . . Utility . | . . . . Weapon . | . . . . Parts Attached 36 | 6 22 4 4 Power 4 | 1 2 1 . Engine 4 | 1 2 1 . Core . | . . . . Reactor . | . . . . Propulsion 8 | 2 6 . . Treads 4 | 2 2 . . Leg 2 | . 2 . . Wheel 2 | . 2 . . Hover . | . . . . Flight . | . . . . Utility 6 | 1 5 . . Device . | . . . . Storage 5 | 1 4 . . Processor 1 | . 1 . . Hackware . | . . . . Protection . | . . . . Artifact . | . . . . Weapon 18 | 2 9 3 4 Energy Gun 8 | . 4 1 3 Energy Cannon 1 | . . 1 . Ballistic Gun 6 | 2 4 . . Ballistic Cannon . | . . . . Launcher 1 | . . . 1 Special Weapon 1 | . 1 . . Impact Weapon . | . . . . Slashing Weapon . | . . . . Piercing Weapon . | . . . . Special Melee Weapon 1 | . . 1 . Unidentified Prototypes . | . . . . Parts Lost 6 | . 5 . 1 Power 2 | . 2 . . Propulsion 2 | . 2 . . Utility . | . . . . Weapon 2 | . 1 . 1 Highest Loss Streak 4 | . 4 . 1 Average Slot Usage (%) 96 | . 94 100 96 Engine 13 | . 13 14 14 Treads 24 | . 22 28 28 Leg 1 | . 1 . . Wheel 1 | . 3 . . Storage 21 | . 17 28 28 Processor 4 | . 7 . . Energy Gun 13 | . 7 23 12 Energy Cannon 1 | . . 2 . Ballistic Gun 11 | . 19 . . Naked Turns . | . . . . Heaviest Build 82 | 11 75 82 77 Greatest Support 46 | 40 46 46 46 Greatest Overweight (x) 6 | 1 6 1 1 Average Overweight (x) . | . . 1 1 Largest Inventory Capacity 20 | 6 20 20 20 Average Capacity 15 | 5 12 20 20 Most Carried 20 | 2 20 20 20 Average Carried 14 | 1 11 19 19 Final Capacity 20 | 6 20 20 20 Final Carried 20 | 2 20 20 19 Class Distribution -------------------- 52% | Hauler-Mutant 47% | Mutant Dominant Class ---------------- Mutant | -10/Materials Hauler-Mutant | -10/Mines Hauler-Mutant | -10/Exiles Resources | -11 -10 -10 -10 ----------- Run | Scr Mat Min Exi Matter Collected 1153 | 284 829 40 . Remotely . | . . . . Salvage Created 1591 | 115 1232 227 17 Parts 108 | 8 91 9 . Haulers Intercepted 2 | . 2 . . Recyclers Shooed 2 | . 2 . . Parts Field Recycled . | . . . . Retrieved Matter . | . . . . Parts Self-Destructed . | . . . . Prevented . | . . . . Kills | -11 -10 -10 -10 ------- Run | Scr Mat Min Exi Combat Hostiles Destroyed 24 | . 17 2 5 Guns 19 | . 17 2 . AOE 5 | . . . 5 Classes Destroyed 10 | 2 7 . 1 Worker 8 | . 7 1 . Builder 5 | . 5 . . Tunneler 4 | 2 2 . . Hauler 2 | . 2 . . Recycler 3 | 1 2 . . Operator 2 | . 2 . . Watcher 3 | . 3 . . Swarmer 3 | . 3 . . Grunt 16 | . 14 2 . Assembled 5 | . . . 5 Best Kill Streak 5 | 3 5 1 5 Combat Bots Only 5 | . 3 1 5 Max Kills in Single Turn 2 | 1 2 1 2 Gunslinging 1 | . 1 . . Exploded 2 | . . . 2 Melee . | . . . . Uniques/NPCs Destroyed 1 | . . 1 . YI-UF0 (-10/Mines) Combat | -11 -10 -10 -10 -------- Run | Scr Mat Min Exi Damage Taken 1386 | . 842 83 461 Core 260 | . 189 17 54 Absorbed by Shields . | . . . . Core Remaining (%) 100 | 100 . . . Volleys Fired 136 | 4 109 13 10 Largest 2 | 2 2 2 2 Hottest 100 | 40 100 90 90 Shots Fired 260 | 8 213 26 13 Gun 253 | 8 212 26 7 Cannon . | . . . . Launcher 6 | . . . 6 Special 1 | . 1 . . Kinetic 152 | 8 144 . . Thermal 1 | . 1 . . Explosive 6 | . . . 6 Electromagnetic 101 | . 68 26 7 Robot Hit Streak 15 | 4 15 7 8 Robot Miss Streak 4 | 1 4 3 1 Penetration Max . | . . . . Secondary Targets 3 | . 3 . . Max Gunslinging Chain 1 | . 1 . . Shots Hit Robots 175 | 5 144 17 9 Core Hits 74 | 3 54 5 12 Critical Hits 1 | . 1 . . Critical Kills . | . . . . Critical Parts Destroyed 1 | . 1 . . Melee Attacks 2 | . . 2 . Impact . | . . . . Slashing . | . . . . Piercing . | . . . . Sneak Attacks 2 | . . 2 . Combat Hostiles . | . . . . Follow-up Attacks . | . . . . Damage Inflicted 2797 | 68 2029 289 411 Guns 2262 | 68 1945 244 5 Cannons . | . . . . Explosions 535 | . 84 45 406 Melee . | . . . . Ramming . | . . . . Kinetic 1413 | 68 1345 . . Thermal 129 | . 84 45 . Explosive 406 | . . . 406 Electromagnetic 849 | . 600 244 5 Impact . | . . . . Slashing . | . . . . Piercing . | . . . . Highest Corruption 1 | . 1 1 1 Average Corruption 1 | . 1 1 1 Corruption Purged . | . . . . Effects 12 | . 5 7 . Message Errors 5 | . 1 4 . Energy Discharges 3 | . . 3 . Data Loss (minor) 2 | . 2 . . Targeting Errors 2 | . 2 . . Overload Shots . | . . . . Overflow Damage 25 | . . . 25 Projectiles . | . . . . Explosions 25 | . . . 25 Melee . | . . . . Knockbacks . | . . . . Impact . | . . . . Kinetic . | . . . . Secondary . | . . . . Self-Inflicted Damage 35 | . . . 35 Shots 1 | . . . 1 Rammed . | . . . . Targets Rammed . | . . . . Kicked . | . . . . Crushed . | . . . . Highest Temperature 198 | . 198 180 55 Average Temperature 57 | . 59 65 18 Received Heat Transfer 432 | . 375 48 9 Siege Activations . | . . . . Robots Corrupted 1 | . . 1 . Combat Hostiles . | . . . . Parts Fried 3 | . 3 . . Impact Corruptions . | . . . . Robots Melted . | . . . . Combat Hostiles . | . . . . Parts Melted . | . . . . Heat Transferred 150 | . 100 50 . Parts Sabotaged . | . . . . Parts Stolen . | . . . . Parts Stripped . | . . . . Power Chain Reactions 3 | . 2 1 . Missiles Intercepted . | . . . . Alert | -11 -10 -10 -10 ------- Run | Scr Mat Min Exi Peak Influence 216 | 15 216 133 . Initial 53 | . 9 53 . Average 63 | 3 81 37 . Maximum Alert Level 1 | . 1 . . Low Security (%) 96 | 100 93 100 . Level 1 3 | . 6 . . Level 2 . | . . . . Level 3 . | . . . . Level 4 . | . . . . Level 5 . | . . . . High Security . | . . . . Max Security . | . . . . Squads Dispatched 5 | . 5 . . Investigation 4 | . 4 . . Extermination . | . . . . Reinforcement 1 | . 1 . . Assault . | . . . . Garrison . | . . . . Intercept . | . . . . Construction Impeded . | . . . . Haulers Reinforced . | . . . . Stealth | -11 -10 -10 -10 --------- Run | Scr Mat Min Exi Distress Signals . | . . . . Communications Jammed . | . . . . Distress Signals . | . . . . Times Spotted 46 | . 34 4 8 Peak Tracking Total 9 | . 5 2 9 Tactical Retreats 2 | . . 2 . Traps | -11 -10 -10 -10 ------- Run | Scr Mat Min Exi Traps Triggered 3 | . 3 . . Indirectly . | . . . . Trap Hack Attempts . | . . . . Triggered . | . . . . Disarmed . | . . . . Reprogrammed . | . . . . Reused . | . . . . Traps Extracted . | . . . . Installed . | . . . . Triggered . | . . . . Machines | -11 -10 -10 -10 ---------- Run | Scr Mat Min Exi Machines Disabled 5 | . 2 . 3 Max in Single Turn 1 | . 1 . 1 Machines Sabotaged . | . . . . Garrisons Compromised . | . . . . Overloaded Fab Kills . | . . . . Fab Network Shutdowns . | . . . . Hacking | -11 -10 -10 -10 --------- Run | Scr Mat Min Exi Machines Accessed 11 | . 10 1 . Terminals 7 | . 7 . . Fabricators . | . . . . Repair Stations 1 | . 1 . . Recycling Units 2 | . 2 . . Scanalyzers . | . . . . Garrison Access . | . . . . Total Hacks 40 | . 39 1 . Successful 24 | . 23 1 . Failed 15 | . 15 . . Catastrophic 2 | . 2 . . Database Lockouts 1 | . 1 . . Manual 27 | . 27 . . Terminals 29 | . 29 . . Fabricators . | . . . . Repair Stations 4 | . 4 . . Recycling Units 6 | . 6 . . Scanalyzers . | . . . . Garrison Access . | . . . . Terminal Hacks 10 | . 9 1 . Record 1 | . 1 . . Part Schematic 2 | . 2 . . Robot Analysis 4 | . 4 . . Prototype ID Bank 1 | . 1 . . Open Door 1 | . . 1 . Terminal Index 1 | . 1 . . Fabricator Hacks . | . . . . Repair Station Hacks 2 | . 2 . . Scan Component 1 | . 1 . . Repair 1 | . 1 . . Recycling Unit Hacks 2 | . 2 . . Retrieve Components 2 | . 2 . . Scanalyzer . | . . . . Garrison Access Hacks . | . . . . Unauthorized Hacks 10 | . 10 . . Terminals 8 | . 8 . . Track 1 | . 1 . . Botnet 5 | . 5 . . Disrupt 1 | . 1 . . Operators 1 | . 1 . . Fabricators . | . . . . Repair Stations . | . . . . Recycling Units 2 | . 2 . . Mask 1 | . 1 . . Tunnel 1 | . 1 . . Scanalyzers . | . . . . Garrison Access . | . . . . Data Cores Recovered 1 | . 1 . . Used 1 | . 1 . . Hacking Detections 9 | . 9 . . Full Trace Events 5 | . 5 . . Feedback Events 1 | . 1 . . Corruption 1 | . 1 . . Feedback Blocked . | . . . . Robot Schematics Acquired . | . . . . Robots Built . | . . . . Matter . | . . . . Time . | . . . . Total Robot Build Rating . | . . . . Part Schematics Acquired 2 | . 2 . . Parts Built . | . . . . Matter . | . . . . Time . | . . . . Total Part Build Rating . | . . . . Parts Repaired 1 | . 1 . . Time 13 | . 13 . . Parts Recycled . | . . . . Recycled Matter . | . . . . Retrieved Matter . | . . . . Retrieved Components 9 | . 9 . . Parts Scanalyzed . | . . . . Part Schematics Acquired . | . . . . Parts Damaged . | . . . . Bothacking | -11 -10 -10 -10 ------------ Run | Scr Mat Min Exi Used RIF Installer . | . . . . Robots Hacked . | . . . . Non-combat . | . . . . Combat . | . . . . Robot Hacks Applied . | . . . . Relay Couplers Released . | . . . . Robots Rewired . | . . . . Allies Hacked . | . . . . Hacks Repelled . | . . . . Allies | -11 -10 -10 -10 -------- Run | Scr Mat Min Exi Total Allies 3 | . . 3 . Largest Group 3 | . . 3 3 Highest-Rated Group 40 | . . 40 40 Highest-Rated Ally 16 | . . 16 16 Total Orders . | . . . . Ally Attacks 16 | . . . 16 Total Damage 30 | . . . 30 Kills . | . . . . Allies Corrupted . | . . . . Allies Melted . | . . . . Intel | -11 -10 -10 -10 ------- Run | Scr Mat Min Exi Robot Analysis Total 4 | . 4 . . Derelict Logs Recovered 1 | . . 1 . Drone Launches . | . . . . Drone Recoveries . | . . . . Exploration | -11 -10 -10 -10 ------------- Run | Scr Mat Min Exi Turns Passed 3515 | 81 2083 1265 86 Spaces Moved 1772 | 39 1037 664 32 Core 9 | 6 3 . . Treads 1490 | 33 761 664 32 Legs 89 | . 89 . . Wheels 184 | . 184 . . Hover . | . . . . Flight . | . . . . Fastest Speed 50 | 50 90 180 180 Average Speed 162 | 145 150 180 180 Slowest Speed 350 | 160 350 180 180 Overloaded Moves . | . . . . Propulsion Burnouts . | . . . . Robots Hopped . | . . . . Cave-ins Triggered . | . . . . Exploration Rate (%) 52 | 3 98 97 11 Regions Visited 3 Branch Regions 2 Pre-discovered Areas 1 | . 1 . . Known Exits Taken 1 | . 1 . . Unknown Exits Taken 2 | 1 . 1 . Scrap Searched 2 | . . 2 . Spaces Dug 1 | . 1 . . Terrain Destroyed 40 | . 7 6 27 Melee . | . . . . Projectile 1 | . 1 . . AOE 39 | . 6 6 27 Terrain Rammed . | . . . . Walls Destroyed . | . . . . Machines Disabled . | . . . . Actions | -11 -10 -10 -10 --------- Run | Scr Mat Min Exi Total 2148 | 52 1341 709 46 Wait 150 | 2 136 12 . Move 1769 | 38 1036 663 32 Hop . | . . . . Pick Up 33 | 2 25 6 . Fast Attach 17 | 6 9 2 . Attach 6 | . 4 1 1 Detach 4 | . 3 1 . Swap 13 | . 9 1 3 Drop 18 | . 10 8 . Fire 136 | 4 109 13 10 Melee 2 | . . 2 . Ram . | . . . . Kick . | . . . . Crush . | . . . . Escape Stasis . | . . . . Rewire . | . . . . Trap . | . . . . Miscellaneous . | . . . . Route ------- -11/Scrapyard -10/Materials (discovered 4 exits: *Mat x3 / *Min) -10/Mines (discovered 3 exits: *Mat x2 / [*Exi]) -10/Exiles (discovered 1 exit: [*Min]) History --------- Turn | Location | Event 11 | -11/Scrapyard | Discovered new exit (range 14) 82 | -11/Scrapyard | Entered Materials 270 | -10/Materials | Discovered new exit (range 9) 315 | -10/Materials | Build established: Mutant 833 | -10/Materials | Core integrity fell below 50% 1022 | -10/Materials | Discovered new exit (range 11) 1067 | -10/Materials | Discovered new exit (range 10) 1107 | -10/Materials | Lost 4 parts (1p2n1w) 1124 | -10/Materials | Identified exit to Materials 1331 | -10/Materials | Discovered exit to Materials (range 6) 1331 | -10/Materials | Central database locked down 1373 | -10/Materials | Repaired Assault Rifle 1527 | -10/Materials | Identified exit to Mines 1954 | -10/Materials | Build established: Hauler-Mutant 2165 | -10/Materials | Entered Mines 2237 | -10/Mines | Core integrity fell below 20% 2374 | -10/Mines | YI-UF0 nonchalantly dropped a Grenade Launcher on the ground 2399 | -10/Mines | Destroyed YI-UF0 2995 | -10/Mines | Discovered exit to Materials (range 7) 3025 | -10/Mines | Met a Derelict who couldn't figure out how to use a Trap Extractor 3236 | -10/Mines | Assisted by bots powering up and referring to "LRC-V3" 3402 | -10/Mines | A weapon hastily lodged in a ceiling crevice suddenly fell to the ground 3420 | -10/Mines | Deemed a non-threat by the Exiles lab entrance 3422 | -10/Mines | Discovered new exit (range 5) 3430 | -10/Mines | Entered Exiles 3430 | -10/Exiles | Accompanied by 3 allies 3457 | -10/Exiles | Discovered new exit (range 15) 3479 | -10/Exiles | Met 8R-AWN 3489 | -10/Exiles | Attacked by the Exiles 3516 | -10/Exiles | Destroyed by 8R-AWN with 8R-AWN's Boregun Last Messages --------------- 03502_ HV Slug penetrates Wall. 03502_ Penetrated by HV Slug. 03502_ HV Slug penetrates Wall. 03504_ Destroyed Asb. F-torch. 03505_ Penetrated by HV Slug. 03505_ HV Slug penetrates Earth. 03505_ Penetrated by HV Slug. 03505_ HV Slug penetrates Earth. 03506_ Machine disabled. 03506_ as-41932 destroyed. 03507_ Penetrated by HV Slug. 03507_ HV Slug penetrates Earth. 03507_ Penetrated by HV Slug. 03509_ HV Slug penetrates Wall. 03511_ The unstable cave ceiling collapses. 03511_ Penetrated by HV Slug. 03514_ HV Slug penetrates Wall. 03514_ Penetrated by HV Slug. 03514_ HV Slug penetrates Wall. 03516_ Penetrated by HV Slug. Map ----- +----------------------------------------------------+ | ?????????????????????????????????????????????????? | | ?????????????????????????????????????????????????? | | ?????????????????????????????????????????????????? | | ?????????????????????????????????????????????????? | | ?????????????????????????????????????????????????? | | ?????????????????????????????????????????????????? | | ?????????????????????????????????????????????????? | | ?????????????????????????????????????????????????? | | ?????????????????????????????????????????????????? | | ?????????????????????????????????????????????????? | | ?????????????????????????????????????????????????? | | ?????????????????????????????????????????????????? | | ?????????????????????????????????????????????????? | | ?????????????????????????????????????????????????? | | ?????????????????????????????????????????????????? | | ?????????????????????????????????????????????????? | | ????????????????????????????????????????????? < ? | | ????????????????????????????????????????????? # | | ????????????????????????????????????????????? ? | | ????????????????????????????????????????????# #? | | ??????????????????????????????????????????## ## | | ?????????????????????#######??????????????# # | | ?????????????????????# #??????????????# # | | ?????????????????????# #?????????????## ? | | ?????????????????????# g #????????????## #?? | | ????????????????????## =%@ #????????????# #?? | | ??????????????????## %!=%###????????### #??? | | ??????????????????# ! ########## #??? | | ???????????????? # g #""""## #???? | | ????????????? * ##??? | | ???????????? #; * #??? | | ???????????? #### ##?? | | ???????????? ??#" ##;# ### | | ????????????? ???#######?#;### * # | | ????????????? % # ????????????# ?##### | | ?????????????? #####??????????????? ????### | | ???????????????????????????????????? ?????### | | ????????????????????????????????????????????### | | ?????????????????????????????????????????????#" | | ?????????????????????????????????????????????#### | | ????????????????????????????????????????????????# | | ????????????????????????????????????????????????## | | ?????????????????????????????????????????????????# | | ?????????????????????????????????????????????????? | | ?????????????????????????????????????????????????? | | ?????????????????????????????????????????????????? | | ?????????????????????????????????????????????????? | | ?????????????????????????????????????????????????? | | ?????????????????????????????????????????????????? | | ?????????????????????????????????????????????????? | +----------------------------------------------------+ Best States ------------- Heat Dissipation 25 Energy Generation 14 Energy Capacity 275 Matter Stores 300 Matter Capacity 300 Sight Range 16 Terrain Scan Density 10 Evasion (%) 42 Recoil Reduction 2 Item Schematics ----------------- Hcp. Storage Unit | -10/Materials | Hacked Med. Storage Unit | -10/Materials | Hacked Robot Schematics ------------------ None Fabricated ------------ Nothing Alien Tech Used ----------------- None Achievements -------------- None Challenges ------------ None Game ------ Seed ExperimentalDirtyHumpback Manual? 0 Play Time 00:21:45 Cumulative 420.7 hours Start 2021.07.26 @ 11:43:35 End 2021.07.26 @ 14:06:37 Sessions 3 Manual Loads 0 Difficulty Rogue Special Mode None Game No. 339 Rogue 339 Adventurer 0 Explorer 0 Win Type - Total 1 Types 0/0/0/1/0/0/0/0/0 Lore% 71 Gallery% 81 Achievement% 60 Wizard Run 0 Options --------- ASCII 0 Keyboard 1 Movement Numpad Keybinds 0 Fullscreen 1 Font 12/Terminus Map View 83x54 Tactical HUD 1 Map Filters NONE Filters NONE Steam 1 RUN: f0de82a5-480d-4794-883e-ee6ec6bcdddc